bitfinex-derivatives/quotes_ETHF0:USTF0_20260308
["timestamp","ask_amount","ask_price","bid_price","bid_amount"]
[1772952449927,0.56667117,1947.5,1946.9,0.39984085]
[1772952476743,0.56667117,1947.5,1946.8,0.00626078]
[1772952477040,0.56667117,1947.5,1946.8,0.43844809]
[1772952481646,0.57757883,1947.3,1946.8,0.00626078]
[1772952486243,0.58323579,1947.2,1946.6,0.44535284]
[1772952487446,0.5871929,1947.2,1946.6,0.45110562]
[1772952490545,0.5871929,1947.2,1946.6,0.00575278]
[1772952492750,0.5871929,1947.2,1946.6,0.45780309]
[1772952500960,0.5871929,1947.2,1946.6,0.00575278]
[1772952501358,0.5871929,1947.2,1946.6,0.45130754]
[1772952506662,0.5871929,1947.2,1946.2,0.43893582]
[1772952506866,0.58323579,1946.8,1946.2,0.43893582]
[1772952507664,0.58323579,1946.8,1946.2,0.44477144]
[1772952524069,0.59632705,1946.6,1946.2,0.44477144]
[1772952524268,0.59632705,1946.6,1946.0,0.4533993]
[1772952525373,0.59632705,1946.6,1946.0,0.45717758]
[1772952541282,0.59632705,1946.2,1945.5,0.44167553]
[1772952542186,0.59632705,1946.0,1945.5,0.00576036]
[1772952542487,0.59632705,1946.0,1945.4,0.44320865]
[1772952543587,0.59632705,1946.0,1945.4,0.44989373]
[1772952544687,0.59632705,1946.0,1945.4,0.00668508]
[1772952544888,0.59632705,1946.0,1945.0,9.69625609]
[1772952545188,0.59632705,1946.0,1945.1,0.44225609]
[1772952545782,0.59632705,1946.0,1945.1,0.44697421]
[1772952546788,0.59632705,1946.0,1945.2,0.442149]
[1772952547086,0.5698123,1946.6,1945.2,0.442149]
[1772952548087,0.5698123,1946.4,1945.2,0.442149]
[1772952551388,0.5698123,1946.4,1945.5,0.42729079]
[1772952551692,0.5698123,1946.4,1945.6,0.42729079]
[1772952556092,0.8266923,1946.5,1945.6,0.42729079]
[1772952556393,0.5698123,1946.4,1945.6,0.42729079]
[1772952562505,0.5698123,1946.4,1945.8,0.42694814]
[1772952567903,0.5698123,1946.4,1945.6,0.42640733]
[1772952568108,2.31008222,1946.5,1945.0,22.4979084]
[1772952568109,0.5698123,1946.2,1945.5,9.66040733]
[1772952568607,0.5698123,1946.2,1945.6,0.42640733]
[1772952569903,0.5698123,1946.4,1945.7,0.42455907]
[1772952570904,0.5698123,1945.9,1945.4,0.42455907]
[1772952571811,0.5698123,1945.9,1945.1,0.00471812]
[1772952572012,0.5698123,1945.9,1945.1,0.4288688]
[1772952575710,0.59727282,1945.7,1945.1,0.4288688]
[1772952575913,0.603692,1945.7,1945.1,0.4288688]
[1772952582514,0.603692,1945.7,1945.1,0.00471812]
[1772952583220,0.603692,1945.7,1945.1,0.43751409]
[1772952586218,0.59727282,1945.2,1944.6,0.43817969]
[1772952587129,0.59727282,1945.2,1944.6,0.44409775]
[1772952588224,0.59727282,1945.4,1944.9,0.44066894]
[1772952598132,0.59727282,1945.4,1944.8,0.43914401]
[1772952600633,0.85427282,1945.6,1945.2,0.43826659]
[1772952601227,0.59727282,1945.5,1945.2,0.43826659]
[1772952607235,0.59727282,1945.5,1945.1,2.49294516]
[1772952609635,0.59727282,1945.5,1945.2,0.43548617]
[1772952617142,0.59727282,1945.5,1945.1,2.46353881]
[1772952617342,0.59727282,1945.5,1945.2,0.41033659]
[1772952623552,0.00641918,1945.7,1945.4,0.40944024]
[1772952624349,0.56277109,1945.7,1945.4,0.40944024]
[1772952624650,0.55117491,1945.7,1945.4,0.40944024]
[1772952624851,0.55635191,1946.0,1945.4,0.40944024]
[1772952625553,0.56211922,1946.0,1945.4,0.40944024]
[1772952640560,0.25694,1946.1,1945.4,0.40944024]
[1772952641463,0.26326447,1946.1,1945.4,0.40944024]
[1772952642363,0.26326447,1946.1,1945.5,0.55362047]
[1772952646366,0.00632447,1946.1,1945.5,0.55362047]
[1772952655671,0.59782606,1946.2,1945.5,0.55362047]
[1772952655970,0.59782606,1946.6,1945.5,0.55362047]
[1772952656176,0.59782606,1946.6,1945.6,0.55362047]
[1772952656976,0.60450754,1946.6,1945.6,0.55362047]
[1772952663078,0.57437433,1946.8,1945.9,0.54822741]
[1772952663281,0.57437433,1946.8,1945.4,40.8]
[1772952663282,0.57437433,1946.8,1946.1,0.54822741]
[1772952663786,0.57437433,1946.5,1945.6,9.346]
[1772952663989,0.57437433,1945.9,1945.1,0.54822741]
[1772952664186,0.57437433,1945.9,1945.3,0.54822741]
[1772952665085,0.57437433,1945.9,1945.3,0.55363799]
[1772952689603,0.57437433,1945.9,1945.5,0.54822741]
[1772952711223,0.5582798,1946.1,1945.5,0.54822741]
[1772952712216,0.8152098,1946.2,1945.7,0.5969504]
[1772952712420,0.8152098,1946.2,1945.9,0.5969504]
[1772952715116,0.5582798,1946.4,1945.9,0.5969504]
[1772952718131,0.5582798,1946.4,1945.8,0.5969504]
[1772952718626,0.5582798,1946.4,1945.8,9.519]
[1772952719128,0.5582798,1946.4,1945.8,10.1159504]
[1772952721224,0.5582798,1946.4,1945.9,0.5969504]
[1772952724639,0.56096684,1946.1,1945.4,0.5814333]
[1772952724839,0.56096684,1946.1,1945.5,0.5814333]
[1772952728041,0.56096684,1946.1,1945.6,0.5814333]
[1772952728233,0.25692,1946.2,1945.6,0.5814333]
[1772952728438,0.25692,1946.2,1945.7,2.05420879]
[1772952728638,0.25692,1946.2,1945.8,0.5814333]
[1772952730542,0.56096684,1946.3,1945.8,0.5814333]
[1772952732038,0.56096684,1946.4,1945.8,0.5814333]
[1772952732242,0.56096684,1946.4,1945.3,2.05961937]
[1772952732243,0.56663888,1946.5,1946.0,0.5814333]
[1772952738855,0.56096684,1946.6,1946.2,0.5814333]
[1772952739856,0.56679453,1946.6,1946.2,0.5814333]
[1772952742052,0.00582769,1946.6,1946.2,0.5814333]
[1772952743854,0.56679453,1946.6,1946.2,0.5814333]
[1772952748953,0.00582769,1946.6,1946.2,0.5814333]
[1772952749559,0.56679453,1946.6,1946.2,0.5814333]
[1772952759165,0.00582769,1946.6,1946.2,0.5814333]
[1772952760465,0.56556271,1946.6,1946.2,0.5814333]
[1772952760765,0.00582769,1946.6,1946.2,0.5814333]
[1772952762066,0.56556271,1946.6,1946.2,0.5814333]
[1772952768566,0.00582769,1946.6,1946.2,0.5814333]
[1772952772474,0.56556271,1946.6,1946.2,0.5814333]
[1772952773676,0.56556271,1946.6,1945.8,13.41336808]
[1772952773677,0.56556271,1946.6,1946.0,0.57504398]
[1772952773877,0.56556271,1946.6,1946.0,10.28704398]
[1772952781180,0.56556271,1946.6,1946.1,0.57504398]
[1772952781581,0.00582769,1946.6,1946.1,0.57504398]
[1772952782383,0.55783724,1946.6,1946.1,0.57504398]
[1772952782680,0.55783724,1946.6,1945.9,10.3568949]
[1772952782881,0.55783724,1946.6,1945.9,10.3588949]
[1772952783881,0.55783724,1946.6,1946.0,0.5688949]
[1772952790682,0.55200955,1946.4,1945.9,0.5688949]
[1772952790888,0.55200955,1946.4,1945.7,0.5688949]
[1772952794288,2.30927985,1946.5,1945.7,0.5688949]
[1772952794289,0.55200955,1946.2,1945.7,0.5688949]
[1772952819511,0.25691,1946.3,1945.7,0.5688949]
[1772952819818,0.59972996,1946.6,1945.7,0.5688949]
[1772952840737,0.59390227,1946.5,1945.7,0.5688949]
[1772952856660,0.56521285,1946.4,1945.7,0.5688949]
[1772952866964,0.56521285,1946.1,1945.7,0.5688949]
[1772952872770,0.56521285,1946.1,1945.6,10.44701538]
[1772952873571,0.56521285,1946.1,1945.7,0.54701538]
[1772952874473,0.56521285,1946.1,1945.4,0.54701538]
[1772952874666,0.56521285,1946.1,1945.5,9.906]
[1772952874867,0.56521285,1946.1,1945.5,0.54701538]
[1772952875070,0.56521285,1946.1,1945.5,10.45501538]
[1772952877270,0.56521285,1946.1,1945.5,0.54701538]
[1772952877476,0.56521285,1946.1,1945.4,10.46401538]
[1772952878273,0.56521285,1946.1,1945.5,0.54701538]
[1772952889384,0.5612761,1946.2,1945.5,0.54701538]
[1772952891980,0.5612761,1946.4,1945.5,0.54701538]
[1772952894082,0.56710379,1946.6,1945.6,13.41336808]
[1772952894385,0.56710379,1946.6,1945.7,0.54701538]
[1772952904393,0.00582769,1946.6,1945.8,0.56346156]
[1772952904693,0.00582769,1946.6,1946.0,0.56346156]
[1772952908990,0.56886486,1946.8,1946.1,0.56346156]
[1772952909197,0.56886486,1947.1,1946.1,0.56346156]
[1772952909996,0.57499724,1947.1,1946.1,0.56346156]
[1772952911388,0.57499724,1947.1,1946.4,0.56346156]
[1772952911598,0.00613238,1947.1,1946.6,0.56346156]
[1772952911898,0.57499724,1947.1,1946.6,0.56346156]
[1772952918205,0.57499724,1947.1,1946.5,10.61246156]
[1772952918701,0.57499724,1947.1,1946.6,0.56346156]
[1772952925709,0.00613238,1947.1,1946.6,0.56346156]
[1772952926313,0.57499724,1947.1,1946.6,0.56346156]
[1772952927116,0.00613238,1947.1,1946.6,0.56346156]
[1772952928015,0.57499724,1947.1,1946.6,0.56346156]
[1772952947829,0.58332537,1947.6,1946.6,0.56346156]
[1772952948035,0.58332537,1947.6,1946.8,0.56229994]
[1772952948234,2.05144798,1947.5,1946.8,10.70229994]
[1772952948434,0.58332537,1947.4,1946.8,10.70229994]
[1772952948934,0.58946461,1947.4,1946.8,0.0061083]
[1772952949136,0.58946461,1947.4,1946.8,10.0911083]
[1772952951733,0.84622461,1947.4,1946.8,10.0911083]
[1772952952033,0.58332537,1947.2,1946.8,0.5627362]
[1772952957741,0.58332537,1947.2,1946.8,0.00043626]
[1772952958641,0.58332537,1947.2,1946.8,0.5627362]
[1772952962445,0.26289924,1947.4,1946.8,0.5627362]
[1772952962743,0.81259466,1947.4,1946.8,0.5627362]
[1772952962946,0.00613924,1947.4,1946.8,0.5627362]
[1772952964745,0.54969542,1947.8,1947.2,0.5638298]
[1772952964939,0.54969542,1947.8,1947.3,0.5638298]
[1772952965645,0.55439601,1947.8,1947.3,0.5638298]
[1772952968452,0.55439601,1947.8,1947.1,10.195]
[1772952968644,0.55439601,1947.8,1947.1,10.7588298]
[1772952969549,0.55439601,1947.8,1947.2,0.5638298]
[1772952974455,0.54969542,1947.7,1947.2,0.5638298]
[1772952978559,0.55439601,1947.8,1947.2,0.5638298]
[1772952982162,0.54969542,1948.0,1947.3,0.5638298]
[1772952982368,0.54969542,1947.9,1947.3,10.7478298]
[1772952982568,0.54969542,1947.7,1947.2,0.5638298]
[1772952982965,0.54969542,1947.3,1946.8,0.56426606]
[1772952983268,0.55621436,1947.3,1946.8,0.56426606]
[1772953005490,0.00651894,1947.3,1946.8,0.56426606]
[1772953006489,0.57528201,1947.3,1946.8,0.56426606]
[1772953018798,0.00651894,1947.3,1946.8,0.56426606]
[1772953019700,0.57528201,1947.3,1946.8,0.56426606]
[1772953025001,0.57528201,1947.3,1946.8,0.00043626]
[1772953025205,0.57528201,1947.3,1946.8,0.57611769]
[1772953027206,0.57528201,1947.3,1946.8,0.00043626]
[1772953027407,0.57528201,1947.3,1946.8,0.57611769]
[1772953028407,0.57528201,1947.3,1946.8,0.00043626]
[1772953030109,0.57528201,1947.3,1946.8,0.57611769]
[1772953042519,0.57528201,1947.3,1946.8,0.00043626]
[1772953043019,0.57528201,1947.3,1946.8,0.57611769]
[1772953043522,0.57528201,1947.3,1946.8,0.00043626]
[1772953044621,0.57528201,1947.3,1946.8,0.57611769]
[1772953070151,0.00651894,1947.3,1946.8,2.62773468]
[1772953070552,0.60025613,1947.5,1946.9,0.59620435]
[1772953071654,0.60144804,1947.5,1946.9,0.59620435]
[1772953073151,0.60144804,1947.5,1947.1,0.59620435]
[1772953073152,0.00119191,1947.5,1947.1,0.59620435]
[1772953073354,0.00119191,1947.5,1947.2,0.59620435]
[1772953078256,0.60144804,1947.5,1947.2,0.59620435]
[1772953083759,2.05161699,1947.9,1947.2,0.59620435]
[1772953083954,0.54756152,1948.0,1947.5,0.5749835]
[1772953084161,1.28001026,1948.1,1947.8,0.5749835]
[1772953085059,0.54756152,1948.2,1947.8,0.5749835]
[1772953085555,0.54756152,1948.1,1947.5,0.5749835]
[1772953085757,0.54756152,1948.1,1947.6,0.5749835]
[1772953087156,0.54756152,1948.1,1947.6,11.0849835]
[1772953088458,0.54756152,1948.1,1947.7,0.5749835]
[1772953093569,0.54756152,1948.5,1948.1,0.5749835]
[1772953094066,0.54756152,1948.5,1948.0,0.5749835]
[1772953094862,0.54756152,1948.5,1947.9,0.5749835]
[1772953098967,0.54756152,1948.8,1947.9,0.5749835]
[1772953099169,0.54756152,1948.8,1948.1,0.5749835]
[1772953103665,2.59917851,1948.8,1948.1,0.5749835]
[1772953103970,0.54756152,1948.7,1948.1,0.5749835]
[1772953106269,2.05161699,1949.1,1948.1,0.5749835]
[1772953106476,0.54756152,1949.0,1948.1,0.5749835]
[1772953108078,0.54756152,1949.0,1948.3,0.5749835]
[1772953108277,0.54756152,1949.0,1948.3,0.579877]
[1772953110373,0.54756152,1949.1,1948.7,0.5749835]
[1772953110577,0.54756152,1949.1,1948.4,0.5749835]
[1772953110772,0.54756152,1949.1,1948.3,0.579877]
[1772953112186,0.54756152,1948.9,1947.7,0.5749835]
[1772953113278,0.55124407,1948.9,1947.7,0.58044788]
[1772953113687,0.54857586,1948.7,1947.7,0.58044788]
[1772953121693,0.54857586,1948.5,1947.7,0.58044788]
[1772953122493,0.54857586,1948.5,1947.7,0.00546438]
[1772953123491,0.54857586,1948.5,1947.7,0.54956407]
[1772953133900,0.54857586,1948.3,1947.7,0.54956407]
[1772953134298,0.54857586,1948.3,1947.7,0.00546438]
[1772953135005,0.54857586,1948.1,1947.1,0.54409969]
[1772953135904,0.54857586,1948.1,1947.1,0.54910017]
[1772953136305,0.54857586,1947.9,1947.1,0.54910017]
[1772953138300,0.54857586,1948.2,1947.1,0.54910017]
[1772953141610,0.54857586,1948.2,1947.3,0.54409969]
[1772953142610,0.54857586,1948.2,1947.5,0.5759627]
[1772953144811,0.83725821,1948.3,1947.5,0.5759627]
[1772953146416,0.58061821,1948.2,1947.5,0.5759627]
[1772953154414,0.25664,1948.3,1947.5,0.5759627]
[1772953154915,0.58061821,1948.2,1947.5,0.5759627]
[1772953162922,0.58061821,1948.2,1947.3,0.5759627]
[1772953167427,0.58061821,1948.0,1947.2,10.556]
[1772953167836,0.58061821,1948.0,1947.2,11.1319627]
[1772953168536,0.58061821,1948.0,1947.3,0.5759627]
[1772953176240,0.25667,1948.1,1947.3,0.5759627]
[1772953176544,0.54763425,1948.2,1947.4,0.58479991]
[1772953177144,0.54763425,1948.0,1947.4,0.58479991]
[1772953180846,2.05021984,1947.9,1947.2,0.58479991]
[1772953181051,0.54763425,1947.8,1947.2,0.58479991]
[1772953181552,0.54763425,1947.8,1947.1,0.58980039]
[1772953182752,0.54763425,1947.6,1947.1,0.00500048]
[1772953183355,0.54763425,1947.6,1947.0,0.58479991]
[1772953183550,0.54763425,1947.6,1946.8,0.58479991]
[1772953183855,0.54763425,1947.4,1946.8,0.58479991]
[1772953184256,0.55397977,1947.4,1946.8,0.59112175]
[1772953184453,0.00634552,1947.4,1947.0,0.58479991]
[1772953184660,0.54763425,1947.7,1947.0,0.58479991]
[1772953184955,0.54763425,1947.7,1947.2,0.58479991]
[1772953185546,0.55364598,1947.7,1947.2,0.58479991]
[1772953189361,0.54763425,1948.0,1947.3,0.58479991]
[1772953190357,0.55063536,1948.0,1947.3,0.58479991]
[1772953190657,0.55063536,1948.0,1947.1,0.58479991]
[1772953190962,0.54763425,1947.8,1947.1,0.58479991]
[1772953200666,0.54763425,1947.6,1946.9,0.58479991]
[1772953200866,2.05021984,1947.5,1946.9,0.58479991]
[1772953201167,0.54763425,1947.4,1946.9,0.58479991]
[1772953201366,0.54763425,1947.4,1946.8,0.00632184]
[1772953201567,0.54763425,1947.2,1946.8,0.00632184]
[1772953201766,0.54763425,1947.2,1946.7,0.07389271]
[1772953201968,0.54763425,1947.0,1946.4,0.50226528]
[1772953202659,0.57554571,1947.4,1946.5,0.50211295]
[1772953202864,0.57554571,1947.6,1946.9,0.50211295]
[1772953203067,0.57554571,1947.6,1947.1,0.50084256]
[1772953203263,0.57554571,1947.9,1947.1,0.50084256]
[1772953204162,0.57554571,1947.6,1946.6,0.50084256]
[1772953205170,0.57554571,1947.2,1946.6,0.50084256]
[1772953212077,0.55864571,1947.2,1946.6,0.50084256]
[1772953214377,0.57554571,1947.0,1946.4,0.0047297]
[1772953215281,0.57554571,1947.0,1946.4,0.52065663]
[1772953230793,0.57554571,1947.0,1946.4,0.0047297]
[1772953230989,0.57554571,1947.0,1946.4,0.51874804]
[1772953239097,0.59241666,1947.3,1946.4,0.51874804]
[1772953248507,0.59241666,1947.3,1946.7,0.49926429]
[1772953249909,0.59241666,1947.7,1946.7,0.49926429]
[1772953252104,0.59241666,1947.9,1947.0,0.49920344]
[1772953260816,0.59241666,1947.7,1946.7,0.49946494]
[1772953261723,0.59241666,1947.5,1946.7,0.49946494]
[1772953288542,0.25676,1947.4,1946.7,0.49946494]
[1772953288751,0.56908587,1947.3,1946.5,0.52096383]
[1772953293548,0.56908587,1947.3,1946.9,0.52676484]
[1772953306162,0.56908587,1947.3,1946.8,2.56743574]
[1772953306362,0.56908587,1947.3,1946.9,0.51577643]
[1772953310968,0.57467482,1947.3,1946.9,0.51577643]
[1772953314271,0.25676,1947.4,1946.5,13.41336808]
[1772953314272,0.83143482,1947.4,1947.1,0.51768199]
[1772953315972,0.57467482,1947.9,1947.3,0.51780496]
[1772953316368,0.57467482,1947.9,1946.8,2.56946427]
[1772953316369,0.25671,1947.8,1946.8,2.56946427]
[1772953316568,0.57467482,1947.7,1946.9,0.51780496]
[1772953316969,0.57467482,1947.7,1946.8,11.15180496]
[1772953320275,0.57467482,1947.7,1946.9,0.52847857]
[1772953326079,0.57467482,1947.7,1947.1,0.53082348]
[1772953327479,0.55994846,1947.8,1947.1,0.53082348]
[1772953328179,0.55994846,1947.8,1947.3,0.5299035]
[1772953336289,0.56294957,1948.0,1947.3,0.5299035]
[1772953338081,0.56294957,1948.0,1947.4,2.05165931]
[1772953338286,0.56294957,1948.0,1947.5,0.51075424]
[1772953357501,0.00300111,1948.0,1947.5,0.51075424]
[1772953368711,0.59166762,1948.2,1947.5,0.51075424]
[1772953369610,0.59595756,1948.2,1947.5,0.51075424]
[1772953370706,0.00428994,1948.2,1947.5,0.51075424]
[1772953371711,0.59595756,1948.2,1947.5,0.51075424]
[1772953380110,0.59166762,1948.0,1947.3,0.48523451]
[1772953383320,0.59395765,1948.2,1947.3,0.48523451]
[1772953389725,0.58966771,1948.4,1947.6,0.504525]
[1772953389925,0.58966771,1948.4,1947.7,0.504525]
[1772953390627,0.59169961,1948.4,1947.7,0.504525]
[1772953393632,0.0020319,1948.4,1947.7,0.504525]
[1772953395233,0.59169961,1948.4,1947.7,0.504525]
[1772953403942,0.58966771,1948.6,1947.7,0.504525]
[1772953408239,0.58966771,1948.6,1947.9,0.44973977]
[1772953408437,0.58966771,1949.1,1947.9,0.45469193]
[1772953414449,0.58966771,1949.1,1948.2,0.44873537]
[1772953415651,0.59133968,1948.9,1948.2,0.44873537]
[1772953416252,0.59133968,1948.9,1948.1,12.70392093]
[1772953416447,0.59133968,1948.9,1948.1,13.15238734]
[1772953418250,0.59133968,1948.9,1948.1,12.70392093]
[1772953419151,0.59133968,1948.9,1948.1,13.15526816]
[1772953421150,0.59133968,1948.9,1948.1,10.656]
[1772953422457,0.59133968,1948.9,1948.1,11.10837391]
[1772953422657,0.59133968,1948.9,1948.2,0.45237391]
[1772953424754,0.59133968,1948.9,1948.4,0.4532758]
[1772953424963,0.59133968,1949.1,1948.7,0.59194199]
[1772953425152,0.59133968,1949.1,1948.4,0.59194199]
[1772953425353,0.59133968,1949.1,1948.2,2.63986292]
[1772953425659,0.59133968,1949.1,1948.3,0.59194199]
[1772953426155,0.59133968,1949.1,1948.4,2.04792093]
[1772953426354,0.59133968,1949.1,1948.5,0.59194199]
[1772953427763,0.59133968,1949.1,1948.7,0.59194199]
[1772953430760,0.59133968,1949.9,1948.7,0.59194199]
[1772953430960,0.59133968,1950.1,1949.3,0.59194199]
[1772953431260,0.59133968,1949.9,1949.3,0.00446468]
[1772953431462,0.59133968,1949.9,1949.1,0.59194199]
[1772953431863,0.59133968,1949.9,1949.2,0.59194199]
[1772953432362,0.59532623,1949.9,1949.2,0.59838622]
[1772953434366,0.00398655,1949.9,1949.4,0.59194199]
[1772953435966,0.00398655,1949.9,1949.4,11.22494199]
[1772953436166,0.00398655,1949.9,1949.5,0.59194199]
[1772953436368,0.59133968,1950.1,1949.6,0.59194199]
[1772953437068,0.59133968,1950.3,1949.6,0.59194199]
[1772953438271,0.59133968,1950.1,1949.6,0.59194199]
[1772953440177,0.59133968,1950.2,1949.6,0.59194199]
[1772953440378,0.59133968,1950.4,1949.8,0.59194199]
[1772953440572,0.59133968,1950.3,1949.6,0.59194199]
[1772953440781,0.59133968,1950.1,1949.3,0.59194199]
[1772953441276,0.59133968,1950.1,1949.4,0.59194199]
[1772953442478,0.60077075,1950.3,1949.6,0.57759724]
[1772953443983,0.60077075,1950.1,1949.4,0.57759724]
[1772953453694,0.60077075,1950.1,1949.6,0.57759724]
[1772953454901,0.60077075,1950.3,1949.6,0.57759724]
[1772953457394,0.60077075,1950.1,1949.4,0.57759724]
[1772953460700,0.60077075,1950.1,1949.3,0.57759724]
[1772953462703,0.60077075,1949.9,1949.3,0.57759724]
[1772953468800,0.60077075,1949.9,1949.2,0.58404147]
[1772953472201,0.60077075,1950.5,1949.2,0.58404147]
[1772953472505,0.57327469,1950.4,1949.8,0.57759724]
[1772953492223,0.82960469,1950.7,1949.8,0.57759724]
[1772953492428,0.57327469,1950.6,1949.8,0.57759724]
[1772953496228,0.57327469,1950.8,1949.9,0.56066977]
[1772953497329,0.57327469,1951.1,1950.2,0.56066977]
[1772953502431,0.57327469,1951.1,1950.5,0.59589675]
[1772953503229,0.59859315,1951.7,1950.5,0.59589675]
[1772953507134,0.59859315,1951.7,1950.9,0.59113351]
[1772953507328,0.59859315,1951.7,1950.9,0.59511013]
[1772953510439,0.59859315,1952.2,1951.2,0.59113351]
[1772953515442,0.59859315,1952.2,1951.4,0.59113351]
[1772953516342,0.59859315,1952.4,1951.4,0.59113351]
[1772953516843,0.59859315,1952.4,1951.6,0.59113351]
[1772953517743,0.59859315,1953.0,1951.6,0.59113351]
[1772953517947,0.59859315,1953.0,1951.9,0.59113351]
[1772953518642,0.8392984,1953.2,1952.3,0.59113351]
[1772953518943,0.60960974,1953.6,1952.9,0.59113351]
[1772953519145,0.59859315,1954.3,1953.5,0.59113351]
[1772953519346,0.59859315,1955.1,1953.5,0.59113351]
[1772953519543,0.59859315,1954.9,1953.5,0.59113351]
[1772953519843,0.59859315,1954.6,1953.3,0.59113351]
[1772953520340,0.59859315,1954.6,1953.6,0.59113351]
[1772953521148,17.931,1956.1,1953.6,0.59113351]
[1772953521149,0.59859315,1955.3,1953.6,0.59113351]
[1772953521340,0.59859315,1955.9,1953.9,0.59113351]
[1772953521639,0.59859315,1956.7,1954.5,0.59113351]
[1772953521837,0.59859315,1956.7,1954.4,0.25584]
[1772953521838,0.59859315,1956.7,1954.7,0.59113351]
[1772953522039,0.59859315,1956.3,1954.7,0.59113351]
[1772953522237,0.59859315,1956.2,1954.7,0.59113351]
[1772953522440,0.59859315,1956.4,1954.8,0.59113351]
[1772953522645,0.59859315,1957.0,1955.3,0.59113351]
[1772953522843,0.59859315,1957.0,1955.5,0.59113351]
[1772953524047,0.59859315,1956.8,1955.3,0.59693509]
[1772953524345,0.59859315,1956.6,1955.3,0.59693509]
[1772953524848,0.59859315,1956.6,1955.5,0.59113351]
[1772953525551,0.59859315,1956.6,1955.3,0.00580158]
[1772953526345,0.59859315,1956.6,1955.3,0.59693509]
[1772953527243,0.59859315,1956.6,1955.3,0.00580158]
[1772953527449,0.59859315,1956.2,1955.3,0.00580158]
[1772953528545,7.30459315,1956.2,1954.9,0.59113351]
[1772953528745,0.59859315,1956.1,1954.9,0.59113351]
[1772953528948,0.59859315,1956.1,1954.7,0.59113351]
[1772953529447,0.59859315,1955.9,1954.7,0.59113351]
[1772953529649,0.59859315,1955.7,1954.7,0.0057061]
[1772953530648,0.59859315,1955.5,1954.1,0.59113351]
[1772953530955,0.59859315,1955.5,1954.2,0.59113351]
[1772953531455,0.59859315,1955.5,1954.2,0.59689533]
[1772953533955,0.57975511,1955.3,1954.2,0.00576182]
[1772953534652,3.14130648,1955.5,1954.2,0.00576182]
[1772953534653,0.57975511,1955.1,1954.2,0.00576182]
[1772953535663,0.57975511,1955.1,1953.6,8.513]
[1772953535664,0.57975511,1955.1,1953.4,0.58192754]
[1772953535861,0.57975511,1955.0,1953.4,0.58192754]
[1772953536764,0.57975511,1955.0,1953.4,0.58734305]
[1772953540268,0.57975511,1955.0,1953.8,0.58192754]
[1772953540471,0.57975511,1955.5,1954.2,0.58192754]
[1772953541177,0.57975511,1955.5,1954.4,0.58192754]
[1772953544579,0.57975511,1955.5,1954.5,0.58192754]
[1772953545279,0.57975511,1956.0,1954.5,0.58192754]
[1772953546474,0.25559,1956.4,1955.4,0.58192754]
[1772953546475,0.57975511,1956.4,1955.4,0.58192754]
[1772953546674,0.57975511,1957.0,1955.8,0.58192754]
[1772953547179,0.57975511,1957.0,1955.9,40.8]
[1772953547372,0.58637671,1957.0,1956.0,0.58192754]
[1772953547574,0.84187671,1957.0,1955.9,0.00497624]
[1772953547773,0.57975511,1956.9,1955.9,0.00497624]
[1772953549780,0.57975511,1956.9,1955.5,0.58192754]
[1772953549985,0.57975511,1956.8,1955.5,0.58192754]
[1772953550184,0.57975511,1956.7,1955.5,0.58192754]
[1772953550784,0.57975511,1956.7,1955.5,0.5870091]
[1772953551284,0.57975511,1956.7,1955.5,0.00508156]
[1772953552185,0.57975511,1956.7,1955.5,0.5870091]
[1772953552384,0.57975511,1956.6,1955.5,0.5870091]
[1772953554380,0.57975511,1956.4,1955.5,0.5870091]
[1772953554586,0.57975511,1956.4,1955.5,0.00508156]
[1772953555287,0.54587519,1956.4,1955.5,0.5870091]
[1772953556685,0.54587519,1956.4,1955.5,0.00508156]
[1772953557085,0.54218998,1956.2,1954.8,0.58192754]
[1772953557990,0.54218998,1956.2,1954.8,0.58685231]
[1772953559289,0.54390612,1956.0,1954.8,0.58685231]
[1772953561489,0.54220294,1955.8,1954.8,0.58685231]
[1772953563396,0.55129549,1955.7,1954.8,0.58685231]
[1772953568298,6.7,1955.6,1954.8,0.58685231]
[1772953568502,7.2395988,1955.6,1954.8,0.58685231]
[1772953569302,0.00523243,1955.6,1954.8,0.58685231]
[1772953569502,7.24069564,1955.9,1954.9,0.54662282]
[1772953569703,0.54069564,1955.9,1954.9,0.54662282]
[1772953570403,0.54492822,1955.9,1954.9,0.54662282]
[1772953570697,0.54069564,1955.8,1954.9,0.54662282]
[1772953570897,0.25988258,1955.9,1954.6,0.54662282]
[1772953570898,0.54069564,1955.6,1954.6,0.54662282]
[1772953571104,0.52655372,1955.4,1954.6,0.54662282]
[1772953571904,0.52655372,1955.4,1953.9,0.54662282]
[1772953572098,0.52655372,1955.2,1953.9,0.55050547]
[1772953574002,0.5215024,1955.0,1953.9,0.55050547]
[1772953574304,0.5215024,1954.8,1953.9,0.55050547]
[1772953574500,0.5215024,1954.8,1953.5,0.54662282]
[1772953575502,0.5215024,1954.8,1953.5,0.55175754]
[1772953575704,7.21429892,1954.7,1953.5,0.55175754]
[1772953576406,0.51329892,1954.6,1953.5,0.55175754]
[1772953582213,0.53144371,1954.4,1953.5,0.55175754]
[1772953582417,0.53144371,1954.2,1953.5,0.55175754]
[1772953585915,0.56480143,1954.4,1953.5,0.55175754]
[1772953586116,0.00640226,1954.4,1953.5,0.55175754]
[1772953587918,0.56469173,1954.4,1953.5,0.55175754]
[1772953592518,0.5449472,1954.9,1953.7,0.57974558]
[1772953592725,6.704,1954.8,1953.7,0.57974558]
[1772953593320,0.5449472,1955.1,1953.7,0.57974558]
[1772953593521,0.55134494,1955.1,1953.7,0.57974558]
[1772953594619,0.55134494,1955.1,1954.1,0.57974558]
[1772953600122,0.00639774,1955.1,1954.3,0.57974558]
[1772953601426,0.5449472,1955.4,1954.3,0.57974558]
[1772953602430,0.55055489,1955.4,1954.3,0.57974558]
[1772953612338,0.00560769,1955.4,1954.5,0.57974558]
[1772953614432,7.2469472,1955.8,1954.5,0.57974558]
[1772953615441,7.25232913,1955.8,1954.5,0.57974558]
[1772953615842,0.5449472,1955.7,1954.5,0.57974558]
[1772953617744,0.5449472,1955.5,1954.5,0.57974558]
[1772953620142,0.5449472,1955.5,1954.4,0.57974558]
[1772953620748,0.5449472,1955.3,1954.4,0.57974558]
[1772953620949,0.5449472,1955.1,1954.0,0.57974558]
[1772953624650,0.5449472,1955.1,1954.2,0.58755042]
[1772953627153,0.57673942,1955.5,1954.2,0.58755042]
[1772953627347,0.57673942,1955.5,1954.4,0.58755042]
[1772953627650,7.27773942,1955.5,1954.4,0.58755042]
[1772953627850,0.57673942,1955.4,1954.4,0.58755042]
[1772953634158,0.57567067,1955.2,1954.4,0.58755042]
[1772953658273,0.51738986,1955.7,1954.6,0.5529285]
[1772953658478,0.51738986,1955.7,1954.7,0.5529285]
[1772953659978,0.51738986,1955.7,1954.9,0.5529285]
[1772953660179,0.51738986,1955.7,1954.9,0.55950744]
[1772953660977,0.51738986,1955.7,1954.9,0.00657894]
[1772953661284,0.51738986,1955.7,1954.6,0.5529285]
[1772953662183,0.51738986,1955.7,1954.6,0.55809045]
[1772953663785,0.51889867,1955.5,1954.6,0.55809045]
[1772953664688,0.51889867,1955.3,1954.6,0.55809045]
[1772953664889,7.21989867,1955.3,1954.6,0.55809045]